[Event "Chess Festival Groningen 2023 | A"]
[Site "Groningen, Netherlands"]
[Date "2023.12.27"]
[Round "6.26"]
[White "Kanyamarala, Trisha"]
[Black "Ritzerveld, Noah"]
[Result "1-0"]
[TimeControl "90min/40moves + 30min + 30sec/move"]
[WhiteElo "2184"]
[BlackElo "1997"]

1. d4 {[%clk 01:30:48]} d5 {[%clk 01:30:53]} 2. c4 {[%clk 01:31:08]} c6 {[%clk
01:31:18]} 3. Nc3 {[%clk 01:31:27]} Nf6 {[%clk 01:31:41]} 4. e3 {[%clk
01:31:45]} Bf5 {[%clk 01:30:41]} 5. cxd5 {[%clk 01:31:54]} cxd5 {[%clk
01:31:06]} 6. Qb3 {[%clk 01:32:09]} Nc6 {[%clk 01:31:05]} 7. Qxb7 {[%clk
01:30:57]} Bd7 {[%clk 01:31:26]} 8. Qb3 {[%clk 01:30:50]} {[%emt 00:00:26]} Rb8
{[%clk 01:31:50]} 9. Qd1 {[%clk 01:31:08]} e5 {[%clk 01:31:29]} 10. dxe5 {[%clk
01:30:47]} Nxe5 {[%clk 01:31:51]} 11. Be2 {[%clk 01:31:05]} Bd6 {[%clk
01:31:38]} 12. Nf3 {[%clk 01:31:05]} h5 {[%clk 01:22:20]} 13. h3 {[%clk
01:21:40]} Qe7 {[%clk 01:16:09]} 14. Nd4 {[%clk 01:14:12]} O-O {[%clk
01:11:59]} 15. O-O {[%clk 01:07:46]} h4 {[%clk 01:02:53]} 16. Qe1 {[%clk
00:54:40]} Rfe8 {[%clk 00:59:37]} 17. f4 {[%clk 00:51:02]} Ng6 {[%clk
00:57:55]} 18. Qf2 {[%clk 00:46:04]} Bb4 {[%clk 00:43:36]} 19. Bd3 {[%clk
00:39:32]} Bxc3 {[%clk 00:38:51]} 20. bxc3 {[%clk 00:39:56]} Nh5 {[%clk
00:38:04]} 21. Qf3 {[%clk 00:35:40]} Ng3 {[%clk 00:37:33]} 22. Re1 {[%clk
00:34:18]} Qd6 {[%clk 00:33:14]} 23. a4 {[%clk 00:32:51]} Qf6 {[%clk 00:28:38]}
24. Ba3 {[%clk 00:31:09]} Bxa4 {[%clk 00:28:11]} 25. Qxd5 {[%clk 00:27:39]}
Rbd8 {[%clk 00:27:00]} {[%emt 00:00:22]} 26. Qc4 {[%clk 00:22:51]} {[%emt
00:05:09]} Bd7 {[%clk 00:26:22]} {[%emt 00:01:07]} 27. Bb4 {[%clk 00:22:38]}
{[%emt 00:00:43]} Bc8 {[%clk 00:24:37]} {[%emt 00:02:15]} 28. Ba5 {[%clk
00:17:07]} {[%emt 00:06:01]} Rd6 {[%clk 00:22:36]} {[%emt 00:02:40]} 29. Qa4
{[%clk 00:15:17]} {[%emt 00:02:11]} Bd7 {[%clk 00:22:09]} {[%emt 00:01:02]} 30.
Qc2 {[%clk 00:14:29]} {[%emt 00:01:13]} a6 {[%clk 00:19:18]} {[%emt 00:03:20]}
31. Bb4 {[%clk 00:11:50]} {[%emt 00:03:09]} Rb6 {[%clk 00:17:53]} {[%emt
00:01:56]} 32. Bc5 {[%clk 00:11:50]} {[%emt 00:00:29]} Rbb8 {[%clk 00:16:28]}
{[%emt 00:01:54]} 33. Rxa6 {[%clk 00:11:07]} {[%emt 00:01:14]} Qd8 {[%clk
00:16:03]} {[%emt 00:00:55]} 34. Bxg6 {[%clk 00:07:09]} {[%emt 00:04:28]} fxg6
{[%clk 00:16:26]} {[%emt 00:00:07]} 35. Rxg6 {[%clk 00:06:26]} {[%emt
00:01:15]} Qa5 {[%clk 00:14:10]} {[%emt 00:02:45]} 36. Bb4 {[%clk 00:04:50]}
{[%emt 00:02:05]} Qd5 {[%clk 00:10:03]} {[%emt 00:04:38]} 37. Rg5 {[%clk
00:03:02]} {[%emt 00:02:18]} Qf7 {[%clk 00:08:54]} {[%emt 00:01:40]} 38. Nf3
{[%clk 00:01:55]} {[%emt 00:01:35]} Bf5 {[%clk 00:08:45]} {[%emt 00:00:39]} 39.
Qa4 {[%clk 00:00:53]} {[%emt 00:01:36]} Ne4 {[%clk 00:08:15]} {[%emt 00:00:55]}
40. Qa5 {[%clk 00:01:04]} {[%emt 00:00:19]} Nxg5 {[%clk 00:06:22]} {[%emt
00:02:31]} 41. Nxg5 {[%clk 00:01:27]} Qd7 {[%clk 00:05:56]} {[%emt 00:00:55]}
42. Qa2+ {[%clk 00:29:26]} {[%emt 00:02:33]} Be6 {[%clk 00:35:57]} {[%emt
00:00:28]} 43. Qf2 {[%clk 00:28:45]} {[%emt 00:01:12]} Qd3 {[%clk 00:27:59]}
{[%emt 00:08:27]} 44. Qxh4 {[%clk 00:23:49]} {[%emt 00:05:25]} Bf5 {[%clk
00:26:15]} {[%emt 00:02:20]} 45. e4 {[%clk 00:23:00]} {[%emt 00:01:13]} Qd2
{[%clk 00:23:30]} {[%emt 00:03:16]} 46. Kh2 {[%clk 00:20:02]} {[%emt 00:03:29]}
Bg6 {[%clk 00:20:15]} {[%emt 00:03:44]} 47. f5 {[%clk 00:19:07]} {[%emt
00:01:25]} Rxb4 {[%clk 00:18:27]} {[%emt 00:02:32]} 48. fxg6 {[%clk 00:10:50]}
{[%emt 00:08:34]} Rb2 {[%clk 00:16:44]} {[%emt 00:02:12]} 49. Qh7+ {[%clk
00:10:54]} {[%emt 00:00:26]} Kf8 {[%clk 00:17:06]} {[%emt 00:00:09]} 50. Rf1+
{[%clk 00:10:43]} {[%emt 00:00:40]} Ke7 {[%clk 00:17:30]} {[%emt 00:00:05]} 51.
Qxg7+ {[%clk 00:11:03]} {[%emt 00:00:20]} Kd8 {[%clk 00:17:55]} 52. Qd4+ {[%clk
00:08:20]} {[%emt 00:03:09]} Qxd4 {[%clk 00:17:37]} {[%emt 00:00:47]} 53. cxd4
{[%clk 00:08:46]} {[%emt 00:00:08]} Rg8 {[%clk 00:18:00]} {[%emt 00:00:07]} 54.
g7 {[%clk 00:08:27]} {[%emt 00:00:47]} Ke7 {[%clk 00:17:49]} {[%emt 00:00:40]}
55. Rf7+ {[%clk 00:08:37]} {[%emt 00:00:20]} Kd6 {[%clk 00:17:51]} {[%emt
00:00:29]} 56. e5+ {[%clk 00:08:56]} {[%emt 00:00:10]} Kd5 {[%clk 00:18:12]}
{[%emt 00:00:09]} 57. Rd7+ {[%clk 00:08:57]} {[%emt 00:00:29]} Kc4 {[%clk
00:18:11]} {[%emt 00:00:37]} 58. e6 {[%clk 00:08:36]} {[%emt 00:00:46]} Kd3
{[%clk 00:17:36]} {[%emt 00:01:05]} 59. d5 {[%clk 00:07:15]} {[%emt 00:01:49]}
Ke2 {[%clk 00:17:30]} {[%emt 00:00:39]} 60. Rf7 {[%clk 00:07:00]} {[%emt
00:03:51]} Ke1 61. e7 {[%clk 00:07:00]} Rc8 62. Rf8 {[%clk 00:07:00]} 1-0

[Event "Chess Festival Groningen 2023 | A"]
[Site "Groningen, Netherlands"]
[Date "2023.12.27"]
[Round "6.27"]
[White "Francs, Marats"]
[Black "De Jong, Mathijs"]
[Result "1-0"]
[TimeControl "90min/40moves + 30min + 30sec/move"]
[WhiteElo "1990"]
[BlackElo "2008"]

1. e4 {[%clk 01:30:36]} d5 {[%clk 01:30:55]} 2. exd5 {[%clk 01:30:37]} Qxd5
{[%clk 01:31:19]} 3. Nc3 {[%clk 01:30:26]} Qd8 {[%clk 01:31:42]} 4. d4 {[%clk
01:29:40]} Nf6 {[%clk 01:31:46]} 5. Nf3 {[%clk 01:27:50]} Bg4 {[%clk 01:32:00]}
6. Bc4 {[%clk 01:26:14]} e6 {[%clk 01:31:27]} 7. O-O {[%clk 01:25:35]} c6
{[%clk 01:28:00]} 8. Be2 {[%clk 01:22:44]} Nbd7 {[%clk 01:27:19]} 9. h3 {[%clk
01:21:01]} Bh5 {[%clk 01:26:29]} 10. Ne5 {[%clk 01:18:24]} Nxe5 {[%clk
01:21:31]} 11. dxe5 {[%clk 01:10:47]} Qxd1 {[%clk 01:21:05]} 12. Bxd1 {[%clk
01:10:40]} Bxd1 {[%clk 01:21:29]} 13. Rxd1 {[%clk 01:11:01]} Nd7 {[%clk
01:21:50]} 14. f4 {[%clk 01:09:25]} O-O-O {[%clk 01:19:54]} 15. Be3 {[%clk
01:08:15]} b6 {[%clk 01:12:44]} 16. Ne4 {[%clk 01:07:02]} Be7 {[%clk 01:12:52]}
17. a4 {[%clk 01:03:34]} f5 {[%clk 01:08:23]} 18. Nd6+ {[%clk 01:02:07]} Bxd6
{[%clk 00:47:19]} 19. Rxd6 {[%clk 01:01:14]} Nf8 {[%clk 00:47:46]} 20. Rxc6+
{[%clk 01:00:42]} Kb7 {[%clk 00:48:11]} 21. Rc4 {[%clk 00:57:54]} Ng6 {[%clk
00:45:03]} 22. a5 {[%clk 00:57:11]} Rc8 {[%clk 00:40:45]} 23. Rxc8 {[%clk
00:53:46]} Rxc8 {[%clk 00:40:48]} 24. a6+ {[%clk 00:51:59]} Kb8 {[%clk
00:36:38]} 25. Rd1 {[%clk 00:50:14]} Rxc2 {[%clk 00:31:22]} 26. Rd8+ {[%clk
00:49:57]} Rc8 {[%clk 00:30:57]} 27. Rd7 {[%clk 00:46:19]} Rc7 {[%clk
00:30:52]} 28. Rd6 {[%clk 00:46:38]} Nf8 {[%clk 00:31:03]} 29. Rd8+ {[%clk
00:46:47]} Rc8 {[%clk 00:31:25]} 30. Bxb6 {[%clk 00:46:45]} Rxd8 {[%clk
00:31:36]} 31. Bxd8 {[%clk 00:47:10]} Ng6 {[%clk 00:25:39]} 32. g3 {[%clk
00:46:44]} Kc8 {[%clk 00:25:49]} 33. Ba5 {[%clk 00:46:52]} Ne7 {[%clk
00:26:03]} 34. Bb4 {[%clk 00:47:04]} Nd5 {[%clk 00:25:22]} 35. Bc5 {[%clk
00:47:22]} Nc7 {[%clk 00:25:31]} 36. Bxa7 {[%clk 00:47:25]} Nxa6 {[%clk
00:25:55]} 37. Kf2 {[%clk 00:46:34]} Kb7 {[%clk 00:26:01]} 38. Bd4 Kc6 39. Ke3
{[%clk 00:45:54]} h5 {[%clk 00:24:46]} 40. Kf3 {[%clk 00:45:37]} Kd5 {[%clk
00:23:30]} 41. Bc3 {[%emt 00:00:44]} Kc4 {[%clk 00:16:36]} {[%emt 00:05:59]} 42.
g4 {[%clk 00:44:29]} {[%emt 00:01:51]} hxg4+ {[%clk 00:16:31]} {[%emt
00:01:27]} 43. hxg4 {[%clk 00:44:52]} g6 {[%clk 00:16:33]} 44. Kg3 {[%clk
00:37:23]} {[%emt 00:07:40]} Nc5 {[%clk 00:13:42]} {[%emt 00:03:21]} 45. Kh4
{[%clk 00:37:02]} {[%emt 00:00:53]} Ne4 {[%clk 00:14:00]} {[%emt 00:00:17]} 46.
gxf5 {[%clk 00:36:28]} {[%emt 00:01:36]} gxf5 {[%clk 00:14:25]} 47. Be1 {[%clk
00:34:24]} {[%emt 00:02:01]} Kd3 {[%clk 00:01:14]} {[%emt 00:13:53]} 48. b4
{[%clk 00:34:13]} {[%emt 00:00:29]} Ke2 {[%clk 00:01:01]} {[%emt 00:00:45]} 49.
Bg3 {[%clk 00:34:33]} {[%emt 00:00:11]} Kf3 {[%clk 00:14:35]} {[%emt 00:16:52]}
50. b5 {[%clk 01:02:12]} {[%emt 00:03:14]} Nc5 {[%clk 00:14:58]} 51. b6 {[%clk
01:00:22]} {[%emt 00:02:03]} Nb7 {[%clk 00:12:42]} {[%emt 00:02:46]} 52. Bh2
{[%clk 00:52:53]} {[%emt 00:07:59]} Kg2 {[%clk 00:12:46]} {[%emt 00:00:26]} 53.
Kg5 {[%clk 00:48:20]} {[%emt 00:05:03]} Kxh2 {[%clk 00:11:03]} {[%emt
00:02:16]} 54. Kf6 {[%clk 00:48:35]} {[%emt 00:00:13]} Nc5 {[%clk 00:11:01]}
{[%emt 00:00:32]} 55. Ke7 {[%clk 00:46:40]} {[%emt 00:02:25]} Kg3 {[%clk
00:11:04]} {[%emt 00:00:37]} 56. Kd6 {[%clk 00:47:01]} {[%emt 00:00:03]} Nb7+
{[%clk 00:10:55]} {[%emt 00:00:43]} 57. Kxe6 {[%clk 00:45:10]} {[%emt
00:02:12]} Kxf4 {[%clk 00:11:19]} {[%emt 00:00:26]} 58. Kf6 {[%clk 00:43:23]}
{[%emt 00:01:57]} Kg4 {[%clk 00:06:09]} {[%emt 00:05:41]} 59. e6 {[%clk
00:43:33]} {[%emt 00:00:19]} f4 {[%clk 00:06:09]} {[%emt 00:00:30]} 60. e7
{[%clk 00:43:56]} {[%emt 00:00:14]} Nd6 {[%clk 00:06:19]} {[%emt 00:00:16]} 61.
b7 {[%clk 00:43:48]} {[%emt 00:00:35]} Nxb7 {[%clk 00:06:32]} {[%emt 00:00:17]}
62. e8=Q {[%clk 00:44:10]} {[%emt 00:00:15]} f3 {[%clk 00:06:10]} {[%emt
00:00:46]} 63. Qe4+ {[%clk 00:44:08]} {[%emt 00:00:31]} Kg3 {[%clk 00:06:28]}
{[%emt 00:00:35]} 64. Qxb7 {[%clk 00:44:14]} {[%emt 00:00:04]} Kf2 {[%clk
00:06:05]} {[%emt 00:00:51]} 65. Kf5 {[%clk 00:44:32]} {[%emt 00:00:15]} 1-0

[Event "Chess Festival Groningen 2023 | A"]
[Site "Groningen, Netherlands"]
[Date "2023.12.27"]
[Round "6.28"]
[White "Van Batenburg, Mees"]
[Black "Van Rootselaar, Rik"]
[Result "0-1"]
[TimeControl "90min/40moves + 30min + 30sec/move"]
[WhiteElo "2109"]
[BlackElo "2105"]

1. e4 {[%clk 01:30:39]} c5 {[%clk 01:30:49]} 2. Nf3 {[%clk 01:31:03]} d6 {[%clk
01:30:35]} 3. d4 {[%clk 01:31:28]} cxd4 {[%clk 01:31:02]} 4. Nxd4 {[%clk
01:31:53]} Nf6 {[%clk 01:31:27]} 5. Nc3 {[%clk 01:32:18]} Nc6 {[%clk 01:31:10]}
6. Bg5 {[%clk 01:32:38]} {[%emt 00:00:04]} e6 {[%clk 01:31:22]} 7. Qd3 {[%clk
01:32:57]} Be7 {[%clk 01:29:29]} 8. O-O-O {[%clk 01:33:00]} O-O {[%clk
01:29:31]} 9. f4 {[%clk 01:32:43]} Qb6 {[%clk 01:28:15]} 10. Be2 {[%clk
01:23:28]} Rd8 {[%clk 01:23:57]} 11. Nb3 {[%clk 01:19:40]} a5 {[%clk 01:19:34]}
12. a4 {[%clk 01:10:39]} Bd7 {[%clk 01:17:25]} 13. Qg3 {[%clk 01:08:06]} Rac8
{[%clk 01:03:31]} 14. Kb1 {[%clk 00:34:54]} {[%emt 00:00:22]} Nb4 {[%clk
00:40:05]} 15. e5 {[%clk 00:23:10]} dxe5 {[%clk 00:39:57]} 16. fxe5 {[%clk
00:23:31]} Rxc3 {[%clk 00:39:11]} 17. Qxc3 {[%clk 00:23:57]} Nfd5 {[%clk
00:39:07]} 18. Bxe7 {[%clk 00:14:49]} Nxc3+ {[%clk 00:38:57]} 19. bxc3 {[%clk
00:15:14]} Nd5 {[%clk 00:37:22]} 20. Bxd8 {[%clk 00:15:04]} Nxc3+ {[%clk
00:35:06]} {[%emt 00:00:06]} 21. Kb2 {[%clk 00:14:07]} {[%emt 00:01:39]} Nxa4+
{[%clk 00:34:57]} {[%emt 00:00:50]} 22. Kc1 {[%clk 00:13:37]} {[%emt 00:00:38]}
Qxd8 {[%clk 00:33:40]} {[%emt 00:01:43]} 23. Bf3 {[%clk 00:10:08]} {[%emt
00:04:02]} Qc7 {[%clk 00:25:45]} {[%emt 00:08:29]} 24. Nxa5 {[%clk 00:06:10]}
{[%emt 00:04:30]} Nc3 {[%clk 00:23:54]} {[%emt 00:02:15]} 25. Rd4 {[%clk
00:04:01]} {[%emt 00:02:34]} Na2+ {[%clk 00:20:03]} {[%emt 00:04:22]} 26. Kd1
{[%clk 00:03:26]} {[%emt 00:01:05]} Ba4 {[%clk 00:18:47]} {[%emt 00:01:45]} 27.
Nc4 {[%clk 00:01:25]} {[%emt 00:02:31]} b5 {[%clk 00:18:16]} {[%emt 00:01:06]}
28. Ne3 {[%clk 00:01:49]} {[%emt 00:00:03]} g6 {[%clk 00:17:21]} {[%emt
00:01:23]} 29. Ke2 {[%clk 00:01:22]} {[%emt 00:00:57]} Qxe5 {[%clk 00:17:21]}
{[%emt 00:00:32]} 30. Rd2 {[%clk 00:00:48]} {[%emt 00:01:07]} b4 {[%clk
00:16:13]} {[%emt 00:01:32]} 31. Kf2 {[%clk 00:00:54]} {[%emt 00:00:39]} Nc3
{[%clk 00:16:09]} {[%emt 00:00:20]} 32. g3 {[%clk 00:00:47]} {[%emt 00:00:35]}
Ne4+ {[%clk 00:12:50]} {[%emt 00:03:49]} 33. Bxe4 {[%clk 00:01:16]} {[%emt
00:00:15]} Qxe4 {[%clk 00:13:13]} 34. Rhd1 {[%clk 00:01:36]} {[%emt 00:00:07]}
Bc6 {[%clk 00:13:26]} {[%emt 00:00:35]} 35. Re2 {[%clk 00:00:34]} {[%emt
00:01:09]} Qf3+ {[%clk 00:13:21]} {[%emt 00:00:39]} 36. Ke1 {[%clk 00:00:59]}
{[%emt 00:00:12]} Bb5 {[%clk 00:13:24]} {[%emt 00:00:17]} 37. Rdd2 {[%clk
00:00:57]} {[%emt 00:00:34]} h5 {[%clk 00:11:20]} {[%emt 00:02:32]} 38. Nf1
{[%clk 00:01:00]} {[%emt 00:00:41]} Bxe2 {[%clk 00:11:37]} 39. Rxe2 {[%clk
00:01:28]} {[%emt 00:00:04]} Qc3+ {[%clk 00:11:22]} {[%emt 00:00:47]} 40. Kf2
{[%clk 00:01:38]} {[%emt 00:00:13]} Kg7 {[%clk 00:11:27]} {[%emt 00:01:00]} 41.
Ne3 {[%clk 00:01:52]} {[%emt 00:00:06]} g5 {[%clk 00:09:26]} {[%emt 00:02:05]}
42. h3 {[%clk 00:01:35]} {[%emt 00:00:48]} f5 {[%clk 00:09:21]} {[%emt
00:00:35]} 43. Ng2 {[%clk 00:01:33]} {[%emt 00:00:32]} Kf6 {[%clk 00:09:06]}
{[%emt 00:00:45]} 44. h4 {[%clk 00:01:03]} {[%emt 00:01:02]} g4 {[%clk
00:06:52]} {[%emt 00:02:40]} 45. Ne3 {[%clk 00:01:19]} {[%emt 00:00:17]} Qc6
{[%clk 00:06:55]} {[%emt 00:00:25]} 46. Ke1 {[%clk 00:01:10]} {[%emt 00:00:44]}
Qf3 {[%clk 00:06:20]} {[%emt 00:00:59]} 47. Nf1 {[%clk 00:01:22]} {[%emt
00:00:21]} e5 {[%clk 00:02:04]} {[%emt 00:04:51]} 48. Rf2 {[%clk 00:01:22]}
{[%emt 00:00:33]} Qc3+ {[%clk 00:02:22]} {[%emt 00:00:07]} 49. Nd2 {[%clk
00:01:47]} {[%emt 00:00:04]} Kg6 {[%clk 00:01:36]} {[%emt 00:01:11]} 50. Kf1
{[%clk 00:01:31]} {[%emt 00:00:46]} Qxc2 {[%clk 00:01:42]} {[%emt 00:00:23]}
0-1

[Event "Chess Festival Groningen 2023 | A"]
[Site "Groningen, Netherlands"]
[Date "2023.12.27"]
[Round "6.29"]
[White "Schuricht, Emil Frederick"]
[Black "Ter-Avetisjana, Agnesa Stepania"]
[Result "1/2-1/2"]
[TimeControl "90min/40moves + 30min + 30sec/move"]
[BlackFideId "11614900"]
[WhiteElo "2095"]
[BlackElo "1974"]

1. d4 {[%clk 01:30:58]} d5 {[%clk 01:30:54]} 2. c4 {[%clk 01:31:25]} c6 {[%clk
01:31:18]} 3. cxd5 {[%clk 01:31:50]} cxd5 {[%clk 01:31:42]} 4. Bf4 {[%clk
01:32:16]} Nf6 {[%clk 01:30:47]} 5. Nc3 {[%clk 01:31:34]} Nc6 {[%clk 01:30:52]}
6. e3 {[%clk 01:31:50]} a6 {[%clk 01:30:30]} 7. Bd3 {[%clk 01:32:12]} Bg4
{[%clk 01:30:12]} 8. Nge2 {[%clk 01:32:32]} e6 {[%clk 01:29:59]} 9. O-O {[%clk
01:32:21]} Be7 {[%clk 01:29:47]} 10. Rc1 {[%clk 01:31:21]} {[%emt 00:00:01]}
O-O {[%clk 01:29:56]} 11. h3 {[%clk 01:28:16]} Bh5 {[%clk 01:30:04]} 12. Na4
{[%clk 01:26:40]} Nd7 {[%clk 01:26:51]} 13. a3 {[%clk 01:20:30]} Rc8 {[%clk
01:19:47]} 14. b4 {[%clk 01:15:06]} {[%emt 00:00:04]} e5 {[%clk 01:16:21]} 15.
dxe5 {[%clk 01:14:12]} Ncxe5 {[%clk 01:16:37]} 16. Rxc8 {[%clk 01:05:38]} Qxc8
{[%clk 01:16:53]} 17. Bxe5 {[%clk 01:04:09]} Nxe5 {[%clk 01:17:12]} 18. Nb6
{[%clk 01:04:12]} {[%emt 00:00:04]} Qd8 {[%clk 01:04:51]} 19. Nxd5 {[%clk
01:01:50]} a5 {[%clk 00:50:37]} 20. f3 {[%clk 00:51:49]} axb4 {[%clk 00:45:31]}
21. axb4 {[%clk 00:50:30]} Bd6 {[%clk 00:39:56]} 22. Nef4 {[%clk 00:38:58]}
{[%emt 00:00:13]} Bg6 {[%clk 00:38:06]} 23. Nxg6 {[%clk 00:38:58]} hxg6 {[%clk
00:38:27]} 24. Qb3 {[%clk 00:38:39]} Nc6 {[%clk 00:35:01]} 25. Rd1 {[%clk
00:29:10]} Qh4 {[%clk 00:32:10]} {[%emt 00:00:10]} 26. f4 {[%clk 00:28:25]} g5
{[%clk 00:29:28]} 27. b5 {[%clk 00:25:56]} {[%emt 00:01:15]} Ne7 {[%clk
00:25:12]} {[%emt 00:04:49]} 28. Nxe7+ {[%clk 00:23:35]} {[%emt 00:02:50]} Bxe7
{[%clk 00:25:33]} {[%emt 00:00:09]} 29. Qc4 {[%clk 00:17:19]} {[%emt 00:06:44]}
gxf4 {[%clk 00:24:36]} {[%emt 00:01:26]} 30. Qxf4 {[%clk 00:17:25]} {[%emt
00:00:33]} Qxf4 {[%clk 00:23:33]} {[%emt 00:01:25]} 31. exf4 {[%clk 00:17:53]}
{[%emt 00:00:14]} Rd8 {[%clk 00:22:35]} {[%emt 00:01:15]} 32. Kf2 {[%clk
00:17:34]} {[%emt 00:00:54]} Bc5+ {[%clk 00:22:41]} {[%emt 00:00:21]} 33. Kf3
{[%clk 00:16:23]} {[%emt 00:01:39]} g6 {[%clk 00:22:47]} {[%emt 00:00:36]} 34.
g3 {[%clk 00:16:30]} {[%emt 00:00:10]} Kg7 {[%clk 00:23:04]} {[%emt 00:00:16]}
35. Ke2 {[%clk 00:06:47]} {[%emt 00:10:12]} Re8+ {[%clk 00:22:33]} {[%emt
00:01:01]} 36. Kf3 {[%clk 00:07:09]} {[%emt 00:00:34]} Rd8 {[%clk 00:22:37]}
{[%emt 00:00:04]} 37. h4 {[%clk 00:07:32]} {[%emt 00:00:05]} b6 {[%clk
00:22:48]} {[%emt 00:00:17]} 38. Kg2 {[%clk 00:06:04]} {[%emt 00:02:29]} Rd6
{[%clk 00:21:54]} {[%emt 00:01:25]} 39. Kf1 {[%clk 00:04:17]} {[%emt 00:01:44]}
Rd8 {[%clk 00:21:52]} {[%emt 00:00:33]} 40. Rd2 {[%clk 00:03:21]} {[%emt
00:01:26]} Be3 {[%clk 00:22:00]} {[%emt 00:00:22]} 41. Rd1 {[%clk 00:03:46]}
{[%emt 00:00:40]} Bc5 {[%clk 00:22:25]} 42. Kg2 {[%clk 00:24:33]} {[%emt
00:09:15]} Rd7 {[%clk 00:52:05]} {[%emt 00:00:57]} 43. Rd2 {[%clk 00:22:10]}
{[%emt 00:02:52]} Be3 {[%clk 00:52:04]} {[%emt 00:00:58]} 44. Rd1 {[%clk
00:22:35]} Bc5 {[%clk 00:52:28]} 45. Kf3 {[%clk 00:22:57]} Rd8 {[%clk
00:52:22]} {[%emt 00:00:21]} 46. Be2 {[%clk 00:23:21]} {[%emt 00:00:10]} Rxd1
{[%clk 00:52:30]} {[%emt 00:00:20]} 47. Bxd1 {[%clk 00:23:50]} {[%emt
00:00:04]} Be7 {[%clk 00:51:50]} {[%emt 00:01:09]} 48. Ke4 {[%clk 00:24:10]}
{[%emt 00:00:05]} Bc5 {[%clk 00:51:57]} {[%emt 00:00:25]} 49. f5 {[%clk
00:24:01]} {[%emt 00:00:37]} Bf2 {[%clk 00:51:48]} {[%emt 00:00:44]} 50. Kf3
{[%clk 00:24:19]} {[%emt 00:00:08]} Be1 {[%clk 00:51:37]} {[%emt 00:00:56]} 51.
Bc2 {[%clk 00:24:16]} {[%emt 00:00:20]} Kf6 {[%clk 00:51:44]} {[%emt 00:00:25]}
52. Kg4 {[%clk 00:24:12]} {[%emt 00:00:28]} Bf2 {[%clk 00:50:59]} {[%emt
00:01:18]} 53. Kh3 {[%clk 00:21:26]} {[%emt 00:03:18]} gxf5 {[%clk 00:50:50]}
{[%emt 00:00:36]} 54. Kg2 {[%clk 00:21:54]} {[%emt 00:00:11]} Be1 {[%clk
00:50:24]} {[%emt 00:00:46]} 55. Kf3 {[%clk 00:22:20]} {[%emt 00:00:14]} Kg6
{[%clk 00:47:43]} {[%emt 00:03:01]} 56. Kf4 {[%clk 00:21:12]} {[%emt 00:01:42]}
Bd2+ {[%clk 00:48:08]} {[%emt 00:00:42]} 57. Ke5 {[%clk 00:21:23]} {[%emt
00:00:08]} Bc3+ {[%clk 00:48:31]} 58. Kf4 {[%clk 00:21:46]} Bd2+ {[%clk
00:48:56]} 59. Ke5 {[%clk 00:22:03]} {[%emt 00:00:08]} Bc3+ {[%clk 00:49:22]}
{[%emt 00:00:04]} 60. Kf4 {[%clk 00:22:23]} 1/2-1/2

[Event "Chess Festival Groningen 2023 | A"]
[Site "Groningen, Netherlands"]
[Date "2023.12.27"]
[Round "6.30"]
[White "Vijayakumar, Rishi"]
[Black "Van Der Leest, Bert"]
[Result "1/2-1/2"]
[TimeControl "90min/40moves + 30min + 30sec/move"]
[BlackFideId "1009460"]
[WhiteElo "2104"]
[BlackElo "2142"]

1. d4 {[%clk 01:30:58]} Nf6 {[%clk 01:30:53]} 2. c4 {[%clk 01:31:23]} c5 {[%clk
01:31:17]} 3. d5 {[%clk 01:31:52]} b5 {[%clk 01:31:34]} 4. cxb5 {[%clk
01:32:19]} a6 {[%clk 01:31:55]} 5. e3 {[%clk 01:31:47]} g6 {[%clk 01:31:45]} 6.
Nc3 {[%clk 01:32:02]} Bg7 {[%clk 01:32:09]} 7. e4 {[%clk 01:31:28]} d6 {[%clk
01:31:45]} 8. a4 {[%clk 01:31:43]} O-O {[%clk 01:31:29]} 9. Bc4 {[%clk
01:26:40]} axb5 {[%clk 01:25:42]} 10. Bxb5 {[%clk 01:27:08]} Na6 {[%clk
01:24:22]} 11. Nge2 {[%clk 01:26:30]} Nb4 {[%clk 01:24:28]} 12. O-O {[%clk
01:26:06]} Qb6 {[%clk 01:17:12]} 13. h3 {[%clk 01:19:00]} Ba6 {[%clk 01:16:58]}
14. Ng3 {[%clk 01:07:14]} Bxb5 {[%clk 01:15:51]} 15. Nxb5 {[%clk 01:05:25]} Nd7
{[%clk 01:15:47]} 16. Rb1 {[%clk 00:59:11]} Ne5 {[%clk 00:51:41]} 17. b3 {[%clk
00:56:23]} Ned3 {[%clk 00:51:00]} 18. Be3 {[%clk 00:53:54]} Qa5 {[%clk
00:47:47]} 19. Na3 {[%clk 00:38:44]} e6 {[%clk 00:42:37]} 20. Qd2 {[%clk
00:36:09]} exd5 {[%clk 00:41:17]} 21. exd5 {[%clk 00:36:32]} Ne5 {[%clk
00:37:32]} 22. Nb5 {[%clk 00:34:11]} Ra6 {[%clk 00:25:35]} 23. Ne4 {[%clk
00:33:08]} Qd8 {[%clk 00:23:01]} 24. Nexd6 {[%clk 00:27:32]} {[%emt 00:02:13]}
Rxd6 {[%clk 00:23:10]} {[%emt 00:00:54]} 25. Bxc5 {[%clk 00:27:53]} Rxd5 {[%clk
00:23:24]} {[%emt 00:00:05]} 26. Qxb4 {[%clk 00:26:47]} {[%emt 00:01:26]} Nd3
{[%clk 00:23:38]} {[%emt 00:00:37]} 27. Bxf8 {[%clk 00:26:39]} {[%emt
00:00:56]} Nxb4 {[%clk 00:23:03]} {[%emt 00:00:27]} 28. Bxb4 {[%clk 00:27:07]}
{[%emt 00:00:13]} h5 {[%clk 00:14:22]} {[%emt 00:08:58]} 29. Bc3 {[%clk
00:16:44]} {[%emt 00:10:53]} Bxc3 {[%clk 00:12:47]} {[%emt 00:02:07]} 30. Nxc3
{[%clk 00:17:13]} {[%emt 00:00:04]} Rd3 {[%clk 00:12:39]} {[%emt 00:00:34]} 31.
Ne4 {[%clk 00:15:41]} {[%emt 00:02:14]} Qd4 {[%clk 00:12:59]} 32. Rfe1 {[%clk
00:11:33]} {[%emt 00:04:34]} Qb4 {[%clk 00:09:56]} {[%emt 00:03:33]} 33. Ng5
{[%clk 00:07:34]} {[%emt 00:04:29]} Rxb3 {[%clk 00:07:02]} {[%emt 00:03:24]} 34.
Re8+ {[%clk 00:06:28]} {[%emt 00:01:51]} Kg7 {[%clk 00:07:21]} {[%emt
00:00:12]} 35. Rxb3 {[%clk 00:05:33]} {[%emt 00:01:09]} Qxb3 {[%emt 00:00:33]}
36. h4 {[%clk 00:05:03]} {[%emt 00:00:45]} Qxa4 {[%clk 00:07:25]} {[%emt
00:01:08]} 37. Re7 {[%clk 00:03:36]} {[%emt 00:01:56]} Qxh4 {[%clk 00:07:28]}
{[%emt 00:00:10]} 38. f4 {[%clk 00:01:05]} {[%emt 00:02:48]} Qg3 {[%clk
00:06:18]} {[%emt 00:01:40]} 39. Rxf7+ {[%clk 00:01:01]} {[%emt 00:00:50]} Kg8
{[%clk 00:06:39]} 40. Rf6 {[%clk 00:00:32]} {[%emt 00:01:20]} Qe1+ {[%clk
00:06:02]} {[%emt 00:00:39]} 1/2-1/2